fUST/lending_fUST_20250517
["ID","MTS","AMOUNT","RATE_DAILY","PERIOD"]
[361316595,1747461053037,-302.0983927,0.00013835,2]
[361316596,1747461053047,-450.0,0.00013835,2]
[361316597,1747461053057,-450.0,0.00013835,2]
[361316598,1747461053066,-450.0,0.00013835,2]
[361316599,1747461053075,-450.0,0.00013835,2]
[361316600,1747461053085,-319.61181677,0.00013835,2]
[361316601,1747461053094,-450.0,0.00013835,2]
[361316602,1747461053103,-450.0,0.00013835,2]
[361316603,1747461053112,-356.47959519,0.00013835,2]
[361316604,1747461053121,-353.81363843,0.00013835,2]
[361316605,1747461053131,-540.81052812,0.00013835,2]
[361316606,1747461053140,-354.04471442,0.00013835,2]
[361316607,1747461053149,-450.0,0.00013835,2]
[361316608,1747461053158,-450.0,0.00013835,2]
[361316609,1747461053168,-450.0,0.00013835,2]
[361316610,1747461053178,-450.0,0.00013835,2]
[361316611,1747461053187,-450.0,0.00013835,2]
[361316612,1747461053196,-450.0,0.00013835,2]
[361316613,1747461053205,-356.68597132,0.00013835,2]
[361316614,1747461053214,-450.0,0.00013835,2]
[361316615,1747461053223,-401.23889422,0.00013835,2]
[361316616,1747461053232,-457.48817855,0.00013835,2]
[361316617,1747461053241,-450.0,0.00013835,2]
[361316618,1747461053251,-322.29812548,0.00013835,2]
[361316619,1747461053260,-450.0,0.00013835,2]
[361316620,1747461053270,-450.0,0.00013835,2]
[361316621,1747461053280,-186.2808352,0.00013835,2]
[361316622,1747461053289,-450.0,0.00013835,2]
[361316623,1747461053299,-450.0,0.00013835,2]
[361316624,1747461053310,-215.83006612,0.00013835,2]
[361316625,1747461053319,-450.0,0.00013835,2]
[361316626,1747461053329,-480.04260175,0.00013835,2]
[361316627,1747461053338,-484.73912304,0.00013835,2]
[361316628,1747461053348,-450.0,0.00013835,2]
[361316629,1747461053357,-303.56628363,0.00013835,2]
[361316630,1747461053367,-456.00629058,0.00013835,2]
[361316631,1747461053376,-450.0,0.00013835,2]
[361316632,1747461053386,-450.0,0.00013835,2]
[361316633,1747461053396,-369.15768582,0.00013835,2]
[361316634,1747461053406,-450.0,0.00013835,2]
[361316635,1747461053415,-450.0,0.00013835,2]
[361316636,1747461053424,-450.0,0.00013835,2]
[361316637,1747461053434,-450.0,0.00013835,2]
[361316638,1747461053443,-547.57042625,0.00013835,2]
[361316639,1747461053452,-450.0,0.00013835,2]
[361316640,1747461053462,-450.0,0.00013835,2]
[361316641,1747461053471,-450.0,0.00013835,2]
[361316642,1747461053480,-450.0,0.00013835,2]
[361316643,1747461053489,-450.0,0.00013835,2]
[361316644,1747461053499,-154.71450045,0.00013835,2]
[361316645,1747461053509,-248.38649158,0.00013835,2]
[361316646,1747461053518,-450.0,0.00013835,2]
[361316647,1747461053527,-450.0,0.00013835,2]
[361316648,1747461053536,-233.29998981,0.00013835,2]
[361316649,1747461053546,-450.0,0.00013835,2]
[361316650,1747461053555,-450.0,0.00013835,2]
[361316651,1747461053571,-450.0,0.00013835,2]
[361316652,1747461053581,-434.0,0.00013835,2]
[361316653,1747461053591,-453.58466689,0.00013835,2]
[361316654,1747461053600,-450.0,0.00013835,2]
[361316655,1747461053610,-283.12152171,0.00013835,2]
[361316656,1747461053619,-450.0,0.00013835,2]
[361316657,1747461053628,-202.08360853,0.00013835,2]
[361316658,1747461053639,-456.66486412,0.00013835,2]
[361316659,1747461053648,-352.70735421,0.00013835,2]
[361316660,1747461053657,-450.0,0.00013835,2]
[361316661,1747461053666,-450.0,0.00013835,2]
[361316662,1747461053675,-500.0,0.00013835,2]
[361316663,1747461053685,-451.35470249,0.00013835,2]
[361316664,1747461053694,-299.35982541,0.00013835,2]
[361316665,1747461053703,-450.0,0.00013835,2]
[361316666,1747461053713,-466.63077238,0.00013835,2]
[361316667,1747461053722,-456.46834363,0.00013835,2]
[361316668,1747461053731,-456.61026055,0.00013835,2]
[361316669,1747461053740,-301.94722057,0.00013835,2]
[361316670,1747461053750,-311.16703617,0.00013835,2]
[361316671,1747461053759,-451.94184028,0.00013835,2]
[361316672,1747461053769,-450.0,0.00013835,2]
[361316673,1747461053778,-264.85557736,0.00013835,2]
[361316674,1747461053788,-450.0,0.00013835,2]
[361316675,1747461053798,-450.0,0.00013835,2]
[361316676,1747461053807,-302.59537916,0.00013835,2]
[361316677,1747461053816,-450.0,0.00013835,2]
[361316678,1747461053825,-450.0,0.00013835,2]
[361316679,1747461053835,-302.72191029,0.00013835,2]
[361316680,1747461053844,-360.66333255,0.00013835,2]
[361316681,1747461053853,-450.0,0.00013835,2]
[361316682,1747461053863,-301.59138104,0.00013835,2]
[361316683,1747461053872,-324.9517251,0.00013835,2]
[361316684,1747461053881,-177.96451252,0.00013835,2]
[361316685,1747461053890,-450.0,0.00013835,2]
[361316686,1747461053899,-310.0769539,0.00013835,2]
[361316687,1747461053908,-450.0,0.00013835,2]
[361316688,1747461053917,-450.0,0.00013835,2]
[361316689,1747461053926,-450.0,0.00013835,2]
[361316690,1747461053935,-455.15700086,0.00013835,2]
[361316691,1747461053945,-303.11901148,0.00013835,2]
[361316692,1747461053954,-450.0,0.00013835,2]
[361316693,1747461053964,-337.25616134,0.00013835,2]
[361316694,1747461053973,-340.62372662,0.00013835,2]
[361316695,1747461053982,-450.0,0.00013835,2]
[361316696,1747461053992,-450.0,0.00013835,2]
[361316697,1747461054001,-450.0,0.00013835,2]
[361316698,1747461054010,-450.0,0.00013835,2]
[361316699,1747461054019,-450.54971339,0.00013835,2]
[361316700,1747461054029,-453.74689769,0.00013835,2]
[361316701,1747461054038,-450.0,0.00013835,2]
[361316702,1747461054047,-450.0,0.00013835,2]
[361316703,1747461054056,-452.42674208,0.00013835,2]
[361316704,1747461054065,-452.29242127,0.00013835,2]
[361316705,1747461054074,-450.0,0.00013835,2]
[361316706,1747461054083,-308.19470999,0.00013835,2]
[361316707,1747461054093,-450.0,0.00013835,2]
[361316708,1747461054102,-309.10239353,0.00013835,2]
[361316709,1747461054111,-504.48175415,0.00013835,2]
[361316710,1747461054120,-533.35838948,0.00013835,2]
[361316711,1747461054129,-450.0,0.00013835,2]
[361316712,1747461054142,-450.0,0.00013835,2]
[361316713,1747461054151,-450.0,0.00013835,2]
[361316714,1747461054161,-308.79108871,0.00013835,2]
[361316715,1747461054171,-450.0,0.00013835,2]
[361316716,1747461054180,-304.80952148,0.00013835,2]
[361316717,1747461054189,-151.0,0.00013835,2]
[361316718,1747461054199,-450.0,0.00013835,2]
[361316719,1747461054208,-450.0,0.00013835,2]
[361316720,1747461054217,-450.0,0.00013835,2]
[361316721,1747461054226,-450.0,0.00013835,2]
[361316722,1747461054236,-207.42913821,0.00013835,2]
[361316723,1747461054245,-450.0,0.00013835,2]
[361316724,1747461054254,-457.11005107,0.00013835,2]
[361316725,1747461054264,-555.65874398,0.00013835,2]
[361316726,1747461054273,-450.0,0.00013835,2]
[361316727,1747461054282,-302.07447063,0.00013835,2]
[361316728,1747461054292,-450.0,0.00013835,2]
[361316729,1747461054302,-450.0,0.00013835,2]
[361316730,1747461054311,-505.54110897,0.00013835,2]
[361316731,1747461054321,-450.0,0.00013835,2]
[361316732,1747461054330,-219.23019456,0.00013835,2]
[361316733,1747461054340,-450.0,0.00013835,2]
[361316734,1747461054349,-303.66332167,0.00013835,2]
[361316735,1747461054359,-445.41231098,0.00013835,2]
[361316736,1747461054368,-301.41704221,0.00013835,2]
[361316737,1747461054378,-308.36657949,0.00013835,2]
[361316738,1747461054387,-303.39045581,0.00013835,2]
[361316739,1747461054397,-539.85383043,0.00013835,2]
[361316740,1747461054406,-302.36890714,0.00013835,2]
[361316741,1747461054415,-300.73047115,0.00013835,2]
[361316742,1747461054425,-305.63618556,0.00013835,2]
[361316743,1747461054434,-450.0,0.00013835,2]
[361316744,1747461054443,-302.33076343,0.00013835,2]
[361316745,1747461054452,-456.59387786,0.00013835,2]
[361316746,1747461054462,-302.77400957,0.00013835,2]
[361316747,1747461054472,-450.0,0.00013835,2]
[361316748,1747461054481,-450.0,0.00013835,2]
[361316749,1747461054490,-158.22931609,0.00013835,2]
[361316750,1747461054500,-450.0,0.00013835,2]
[361316751,1747461054510,-300.9141955,0.00013835,2]
[361316752,1747461054520,-197.65,0.00013835,2]
[361316753,1747461054530,-450.0,0.00013835,2]
[361316754,1747461054539,-450.0,0.00013835,2]
[361316755,1747461054549,-450.0,0.00013835,2]
[361316756,1747461054559,-301.84828547,0.00013835,2]
[361316757,1747461054573,-151.0,0.000139,2]
[361316758,1747461054582,-151.0,0.000139,2]
[361316759,1747461054592,-151.0,0.00013971,2]
[361316760,1747461054601,-151.0,0.00013971,2]
[361316761,1747461054612,-1397.11,0.00013971,2]
[361316762,1747461054622,-346.28799915,0.00013972,2]
[361316763,1747461054631,-450.0,0.00013972,2]
[361316764,1747461054642,-450.0,0.00013972,2]
[361316765,1747461054651,-450.0,0.00013972,2]
[361316766,1747461054661,-170.70063298,0.00013972,2]
[361316767,1747461054670,-306.94766278,0.00013972,2]
[361316768,1747461054679,-468.46,0.00013972,2]
[361316769,1747461054689,-511.09,0.00013972,2]
[361316770,1747461054698,-450.0,0.00013972,2]
[361316771,1747461054708,-211.55093842,0.00013972,2]
[361316772,1747461054718,-450.0,0.00013972,2]
[361316773,1747461054728,-450.0,0.00013972,2]
[361316774,1747461054737,-493.72,0.00013972,2]
[361316775,1747461054747,-173.34506491,0.00013972,2]
[361316776,1747461054757,-450.0,0.00013972,2]
[361316777,1747461054767,-388.89753158,0.00013972,2]
[361316778,1747461054776,-450.0,0.00013972,2]
[361316779,1747461054785,-450.0,0.00013972,2]
[361316780,1747461054795,-450.0,0.00013972,2]
[361316781,1747461054804,-500.0,0.00013972,2]
[361316782,1747461054814,-450.0,0.00013972,2]
[361316783,1747461054823,-557.31,0.00013972,2]
[361316784,1747461054833,-450.0,0.00013972,2]
[361316785,1747461054843,-450.0,0.00013972,2]
[361316786,1747461054853,-7456.20848457,0.00013989,2]
[361316787,1747461054862,-152.039877,0.00013999,2]
[361316788,1747461054872,-151.0,0.00013999,2]
[361316789,1747461054881,-1397.11,0.00013999,2]
[361316790,1747461054890,-1397.11,0.00013999,2]
[361316791,1747461054900,-151.0,0.00014,2]
[361316792,1747461054909,-243.606903,0.00014,2]
[361316793,1747461054919,-152.699145,0.00014,2]
[361316794,1747461054928,-151.0,0.00014,2]
[361316795,1747461054938,-151.0,0.00014,2]
[361316796,1747461054947,-151.0,0.00014,2]
[361316797,1747461054957,-151.0,0.00014,2]
[361316798,1747461054967,-151.0,0.00014,2]
[361316799,1747461054977,-151.0,0.00014,2]
[361316800,1747461054986,-151.0,0.00014,2]
[361316801,1747461054995,-151.0,0.00014,2]
[361316802,1747461055005,-151.0,0.00014,2]
[361316803,1747461055014,-151.0,0.00014,2]
[361316804,1747461055024,-151.0,0.00014,2]
[361316805,1747461055033,-13018.29031169,0.00014,5]
[361316806,1747461055068,-574.47949418,0.00014,5]
[361316807,1747461055080,-1530.18372225,0.00014,5]
[361316808,1747461055092,-1337.380915,0.00014,5]
[361316809,1747461055104,-16666.3469105,0.00014,5]
[361316810,1747461055114,-168.54190298,0.00014078,2]
[361316811,1747461055123,-457.4330232,0.000141,2]
[361316812,1747461055132,-1397.11,0.00014108,2]
[361316813,1747461055141,-450.0,0.00014109,2]
[361316814,1747461055150,-352.89,0.00014109,2]
[361316815,1747461055160,-450.0,0.00014109,2]
[361316816,1747461055169,-500.0,0.00014109,2]
[361316817,1747461055179,-275.86,0.00014109,2]
[361316818,1747461055188,-223.3,0.00014109,2]
[361316819,1747461055198,-576.5394969,0.00014137,2]
[361316820,1747461055207,-160.624379,0.00014137,2]
[361316821,1747461055216,-569.5668793,0.00014137,2]
[361316822,1747461055225,-412.6258357,0.00014137,2]
[361316844,1747462232542,-5000.0,0.00012174,2]
[361316845,1747462232552,-165.0993103,0.00012672,2]
[361316846,1747462232561,-300.0,0.00012705,2]
[361316847,1747462232570,-300.0,0.00012705,2]
[361316848,1747462232579,-300.0,0.00012705,2]
[361316849,1747462232588,-4109.49847437,0.00012706,2]
[361316850,1747462232601,-20790.50152563,0.00012706,2]
[361316851,1747462232610,-178.7722378,0.00012842,2]
[361316852,1747462232619,-4268.0,0.00013598,3]
[361316853,1747462232628,-168.54190298,0.00013598,2]
[361316854,1747462232637,-156.9410436,0.000136,2]
[361316855,1747462232646,-3000.0,0.0001367,3]
[361316856,1747462232655,-207.4,0.0001369,2]
[361316857,1747462232664,-500.0,0.00013697,2]
[361316858,1747462232673,-345.90299089,0.00013697,2]
[361316859,1747462232683,-500.0,0.00013697,2]
[361316860,1747462232691,-155.8997159,0.00013697,2]
[361316861,1747462232700,-151.0,0.00013698,2]
[361316862,1747462232713,-231.426558,0.00013698,2]
[361316863,1747462232723,-231.426558,0.00013698,2]
[361316864,1747462232732,-231.426558,0.00013698,2]
[361316865,1747462232741,-231.426558,0.00013698,2]
[361316866,1747462232750,-231.426558,0.00013698,2]
[361316867,1747462232759,-231.426558,0.00013698,2]
[361316868,1747462232769,-231.426558,0.00013698,2]
[361316869,1747462232778,-231.426558,0.00013698,2]
[361316870,1747462232787,-231.426558,0.00013698,2]
[361316871,1747462232796,-231.426558,0.00013698,2]
[361316873,1747462232805,-231.426558,0.00013698,2]
[361316875,1747462232814,-231.426558,0.00013698,2]
[361316877,1747462232823,-231.426558,0.00013698,2]
[361316879,1747462232832,-231.426558,0.00013698,2]
[361316880,1747462232841,-231.426558,0.00013698,2]
[361316881,1747462232852,-231.426558,0.00013698,2]
[361316882,1747462232861,-231.426558,0.00013698,2]
[361316883,1747462232870,-231.426558,0.00013698,2]
[361316884,1747462232879,-450.0,0.00013698,2]
[361316885,1747462232888,-450.0,0.00013698,2]
[361316886,1747462232898,-400.0,0.00013698,2]
[361316887,1747462232907,-353.10046379,0.00013698,2]
[361316888,1747462232917,-500.0,0.00013698,2]
[361316889,1747462232927,-296.44561827,0.00013698,2]
[361316890,1747462232936,-450.0,0.00013698,2]
[361316891,1747462232945,-289.87762816,0.00013698,2]
[361316892,1747462232955,-489.16659115,0.00013698,2]
[361316893,1747462232964,-450.0,0.00013698,2]
[361316894,1747462232973,-454.0431302,0.00013698,2]
[361316895,1747462232983,-450.0,0.00013698,2]
[361316896,1747462232992,-357.21949903,0.00013698,2]
[361316898,1747462233002,-403.15027801,0.00013698,2]
[361316899,1747462233011,-450.0,0.00013698,2]
[361316901,1747462233021,-303.93263152,0.00013698,2]
[361316903,1747462233030,-314.55663735,0.00013698,2]
[361316904,1747462233041,-450.0,0.00013698,2]
[361316905,1747462233049,-317.48616036,0.00013698,2]
[361316906,1747462233059,-450.0,0.00013698,2]
[361316907,1747462233069,-385.60668911,0.00013698,2]
[361316908,1747462233079,-425.66726357,0.00013698,2]
[361316909,1747462233089,-450.0,0.00013698,2]
[361316911,1747462233099,-450.0,0.00013698,2]
[361316913,1747462233108,-450.0,0.00013698,2]
[361316914,1747462233118,-450.0,0.00013698,2]
[361316917,1747462233128,-450.0,0.00013698,2]
[361316919,1747462233137,-495.66039487,0.00013698,2]
[361316920,1747462233147,-450.0,0.00013698,2]
[361316921,1747462233157,-303.43487864,0.00013698,2]
[361316922,1747462233166,-306.47459831,0.00013698,2]
[361316923,1747462233176,-301.24020466,0.00013698,2]
[361316924,1747462233185,-450.0,0.00013698,2]
[361316925,1747462233195,-450.0,0.00013698,2]
[361316926,1747462233204,-306.17814387,0.00013698,2]
[361316927,1747462233213,-306.13285947,0.00013698,2]
[361316928,1747462233222,-450.0,0.00013698,2]
[361316929,1747462233231,-450.0,0.00013698,2]
[361316930,1747462233240,-301.92832266,0.00013698,2]
[361316931,1747462233250,-450.0,0.00013698,2]
[361316932,1747462233259,-450.0,0.00013698,2]
[361316933,1747462233269,-450.0,0.00013698,2]
[361316934,1747462233278,-211.53142303,0.00013698,2]
[361316935,1747462233287,-207.45327182,0.00013698,2]
[361316936,1747462233296,-412.29537772,0.00013698,2]
[361316937,1747462233306,-536.0243757,0.00013698,2]
[361316938,1747462233315,-303.5117403,0.00013698,2]
[361316939,1747462233325,-450.0,0.00013698,2]
[361316940,1747462233333,-302.44695799,0.00013698,2]
[361316941,1747462233343,-450.0,0.00013698,2]
[361316942,1747462233352,-302.23180944,0.00013698,2]
[361316943,1747462233362,-273.39150302,0.00013698,2]
[361316944,1747462233371,-450.0,0.00013698,2]
[361316945,1747462233381,-254.90841661,0.00013698,2]
[361316946,1747462233390,-438.02915316,0.00013698,2]
[361316947,1747462233400,-255.50234326,0.00013698,2]
[361316948,1747462233409,-450.0,0.00013698,2]
[361316949,1747462233418,-450.0,0.00013698,2]
[361316950,1747462233439,-316.50847155,0.00013698,2]
[361316951,1747462233450,-450.0,0.00013698,2]
[361316952,1747462233459,-450.0,0.00013698,2]
[361316953,1747462233469,-347.9980389,0.00013698,2]
[361316954,1747462233478,-309.63561007,0.00013698,2]
[361316955,1747462233492,-154.84726046,0.00013698,2]
[361316956,1747462233502,-450.0,0.00013698,2]
[361316957,1747462233512,-208.05893316,0.00013698,2]
[361316958,1747462233523,-498.58708486,0.00013698,2]
[361316959,1747462233534,-450.0,0.00013698,2]
[361316960,1747462233544,-522.50919857,0.00013698,2]
[361316961,1747462233554,-450.0,0.00013698,2]
[361316962,1747462233565,-254.79274087,0.00013698,2]
[361316963,1747462233575,-450.0,0.00013698,2]
[361316964,1747462233585,-450.0,0.00013698,2]
[361316965,1747462233595,-496.95652471,0.00013698,2]
[361316966,1747462233604,-174.20762987,0.00013698,2]
[361316967,1747462233613,-450.0,0.00013698,2]
[361316968,1747462233623,-401.40170386,0.00013698,2]
[361316969,1747462233633,-450.0,0.00013698,2]
[361316970,1747462233643,-495.34467361,0.00013698,2]
[361316971,1747462233653,-450.0,0.00013698,2]
[361316972,1747462233663,-450.0,0.00013698,2]
[361316973,1747462233674,-450.0,0.00013698,2]
[361316974,1747462233684,-450.0,0.00013698,2]
[361316975,1747462233695,-450.0,0.00013698,2]
[361316976,1747462233705,-450.0,0.00013698,2]
[361316977,1747462233714,-450.0,0.00013698,2]
[361316978,1747462233724,-302.28031177,0.00013698,2]
[361316979,1747462233734,-302.15977914,0.00013698,2]
[361316980,1747462233743,-450.0,0.00013698,2]
[361316981,1747462233753,-301.9478941,0.00013698,2]
[361316982,1747462233762,-323.30051281,0.00013698,2]
[361316983,1747462233774,-450.0,0.00013698,2]
[361316984,1747462233784,-151.0,0.00013698,2]
[361316985,1747462233793,-450.0,0.00013698,2]
[361316986,1747462233802,-450.0,0.00013698,2]
[361316987,1747462233812,-589.55276489,0.00013698,2]
[361316988,1747462233821,-450.0,0.00013698,2]
[361316989,1747462233831,-191.12422495,0.00013698,2]
[361316990,1747462233840,-450.0,0.00013698,2]
[361316991,1747462233850,-450.0,0.00013698,2]
[361316992,1747462233861,-450.0,0.00013698,2]
[361316993,1747462233871,-450.0,0.00013698,2]
[361316994,1747462233880,-450.0,0.00013698,2]
[361316995,1747462233890,-450.0,0.00013698,2]
[361316996,1747462233899,-6123.99,0.00013698,2]
[361316997,1747462233909,-450.0,0.00013698,2]
[361316998,1747462233919,-450.0,0.00013698,2]
[361316999,1747462233928,-450.0,0.00013698,2]
[361317000,1747462233938,-450.0,0.00013698,2]
[361317001,1747462233947,-450.0,0.00013698,2]
[361317002,1747462233957,-450.0,0.00013698,2]
[361317003,1747462233966,-450.0,0.00013698,2]
[361317004,1747462233976,-450.0,0.00013698,2]
[361317005,1747462233986,-450.0,0.00013698,2]
[361317006,1747462233995,-195.31772017,0.00013698,2]
[361317007,1747462234004,-450.0,0.00013698,2]
[361317008,1747462234014,-181.13210054,0.00013698,2]
[361317009,1747462234024,-450.0,0.00013698,2]
[361317010,1747462234033,-450.0,0.00013698,2]
[361317011,1747462234043,-450.0,0.00013698,2]
[361317012,1747462234052,-450.0,0.00013698,2]
[361317013,1747462234062,-450.0,0.00013698,2]
[361317014,1747462234071,-234.0,0.00013698,2]
[361317015,1747462234080,-450.0,0.00013698,2]
[361317016,1747462234089,-450.0,0.00013698,2]
[361317017,1747462234099,-450.0,0.00013698,2]
[361317018,1747462234108,-450.0,0.00013698,2]
[361317019,1747462234117,-450.0,0.00013698,2]
[361317020,1747462234127,-500.0,0.00013698,2]
[361317021,1747462234136,-218.69727339,0.00013698,2]
[361317022,1747462234145,-475.2213068,0.00013698,2]
[361317023,1747462234155,-450.0,0.00013698,2]
[361317024,1747462234164,-338.78319217,0.00013698,2]
[361317025,1747462234174,-450.0,0.00013698,2]
[361317026,1747462234183,-450.0,0.00013698,2]
[361317027,1747462234192,-433.37975003,0.00013698,2]
[361317028,1747462234201,-450.0,0.00013698,2]
[361317029,1747462234211,-450.0,0.00013698,2]
[361317030,1747462234219,-450.0,0.00013698,2]
[361317031,1747462234229,-578.73953519,0.00013698,2]
[361317032,1747462234238,-450.0,0.00013698,2]
[361317033,1747462234247,-450.0,0.00013698,2]
[361317034,1747462234257,-450.0,0.00013698,2]
[361317035,1747462234267,-510.49461876,0.00013698,2]
[361317036,1747462234276,-450.0,0.00013698,2]
[361317037,1747462234285,-450.0,0.00013698,2]
[361317038,1747462234295,-450.0,0.00013698,2]
[361317039,1747462234304,-461.55758918,0.00013698,2]
[361317040,1747462234313,-450.0,0.00013698,2]
[361317041,1747462234323,-450.0,0.00013698,2]
[361317042,1747462234332,-508.20679126,0.00013698,2]
[361317043,1747462234341,-375.48842224,0.00013698,2]
[361317044,1747462234351,-350.0,0.00013698,2]
[361317045,1747462234545,-206.08160523,0.00013698,2]
[361317046,1747462234554,-450.0,0.00013698,2]
[361317047,1747462234564,-450.0,0.00013698,2]
[361317048,1747462234573,-450.0,0.00013698,2]
[361317049,1747462234582,-450.0,0.00013698,2]
[361317050,1747462234591,-450.0,0.00013698,2]
[361317051,1747462234601,-450.0,0.00013698,2]
[361317052,1747462234610,-450.0,0.00013698,2]
[361317053,1747462234619,-450.0,0.00013698,2]
[361317054,1747462234628,-450.0,0.00013698,2]
[361317055,1747462234637,-450.0,0.00013698,2]
[361317056,1747462234646,-450.0,0.00013698,2]
[361317057,1747462234656,-450.0,0.00013698,2]
[361317058,1747462234665,-450.0,0.00013698,2]
[361317059,1747462234674,-392.6343211,0.00013698,2]
[361317060,1747462234683,-450.0,0.00013698,2]
[361317061,1747462234693,-450.0,0.00013698,2]
[361317062,1747462234703,-450.0,0.00013698,2]
[361317063,1747462234712,-256.59921274,0.00013698,2]
[361317064,1747462234721,-393.21700156,0.00013698,2]
[361317065,1747462234730,-322.99494923,0.00013698,2]
[361317066,1747462234739,-274.66693443,0.00013698,2]
[361317067,1747462234748,-351.35273238,0.00013698,2]
[361317068,1747462234758,-450.0,0.00013698,2]
[361317069,1747462234767,-450.0,0.00013698,2]
[361317070,1747462234776,-326.3493469,0.00013698,2]
[361317071,1747462234785,-471.12823176,0.00013698,2]
[361317072,1747462234794,-351.97939828,0.00013698,2]
[361317073,1747462234803,-450.0,0.00013698,2]
[361317074,1747462234813,-282.98849521,0.00013698,2]
[361317075,1747462234822,-478.60282753,0.00013698,2]
[361317076,1747462234832,-500.0,0.00013698,2]
[361317077,1747462234841,-500.0,0.00013698,2]
[361317078,1747462234850,-500.0,0.00013698,2]
[361317079,1747462234860,-500.0,0.00013698,2]
[361317080,1747462234869,-500.0,0.00013698,2]
[361317081,1747462234879,-500.0,0.00013698,2]
[361317082,1747462234888,-350.0,0.00013698,2]
[361317083,1747462234897,-450.0,0.00013698,2]
[361317084,1747462234907,-450.0,0.00013698,2]
[361317085,1747462234916,-305.4065048,0.00013698,2]
[361317086,1747462234925,-381.405976,0.00013699,2]
[361317087,1747462234935,-151.0,0.00013699,2]
[361317088,1747462234945,-231.426558,0.00013699,2]
[361317089,1747462234955,-231.426559,0.00013699,2]
[361317090,1747462234963,-3000.0,0.00013799,3]
[361317091,1747462234973,-500.0,0.00013834,2]
[361317092,1747462234982,-590.3931668,0.00013834,2]
[361317093,1747462234991,-500.0,0.00013834,2]
[361317094,1747462235000,-500.0,0.00013834,2]
[361317095,1747462235010,-428.27578271,0.00013834,2]
[361317096,1747462235020,-500.0,0.00013834,2]
[361317097,1747462235030,-500.0,0.00013834,2]
[361317098,1747462235039,-500.0,0.00013834,2]
[361317099,1747462235048,-500.0,0.00013834,2]
[361317100,1747462235057,-500.0,0.00013834,2]
[361317101,1747462235066,-500.0,0.00013834,2]
[361317102,1747462235076,-500.0,0.00013834,2]
[361317103,1747462235085,-500.0,0.00013834,2]
[361317104,1747462235094,-534.69618538,0.00013834,2]
[361317105,1747462235103,-500.0,0.00013834,2]
[361317106,1747462235113,-500.0,0.00013834,2]
[361317107,1747462235122,-350.0,0.00013834,2]
[361317108,1747462235131,-151.0,0.00013834,2]
[361317109,1747462235140,-500.0,0.00013834,2]
[361317110,1747462235149,-500.0,0.00013834,2]
[361317111,1747462235159,-500.0,0.00013834,2]
[361317112,1747462235168,-300.0,0.00013835,2]
[361317113,1747462235177,-450.0,0.00013835,2]
[361317114,1747462235187,-249.63035447,0.00013835,2]
[361317115,1747462235196,-450.0,0.00013835,2]
[361317116,1747462235205,-450.0,0.00013835,2]
[361317117,1747462235214,-450.0,0.00013835,2]
[361317118,1747462235224,-515.9,0.00013835,2]
[361317119,1747462235233,-193.32000685,0.00013835,2]
[361317120,1747462235242,-450.0,0.00013835,2]
[361317121,1747462235251,-450.0,0.00013835,2]
[361317122,1747462235260,-450.0,0.00013835,2]
[361317123,1747462235270,-449.53742828,0.00013835,2]
[361317124,1747462235279,-450.0,0.00013835,2]
[361317125,1747462235288,-450.0,0.00013835,2]
[361317126,1747462235297,-450.0,0.00013835,2]
[361317127,1747462235306,-348.41930691,0.00013835,2]